bitfinex/quotes_SOLUSD_20250912
["timestamp","ask_amount","ask_price","bid_price","bid_amount"]
[1757643199187,3.20175305,232.88,232.86,0.03]
[1757643199393,0.68,232.89,232.86,0.03]
[1757643200493,0.68,232.88,232.86,0.03]
[1757643200680,3.20149048,232.89,232.86,0.03]
[1757643200880,0.68,232.89,232.86,0.03]
[1757643202079,0.68,232.88,232.86,0.03]
[1757643202288,0.68,232.88,232.87,33.54]
[1757643202684,3.2014675,232.89,232.87,33.54]
[1757643202878,0.06,232.9,232.88,0.66]
[1757643203803,0.06,232.9,232.88,2.37677504]
[1757643204211,0.06,232.9,232.89,60.2]
[1757643204672,0.06,232.9,232.89,34.2]
[1757643207085,0.06,232.9,232.89,35.91754905]
[1757643209596,0.06,232.9,232.89,34.24]
[1757643211087,0.06,232.9,232.89,33.52]
[1757643211478,0.06,232.9,232.87,0.72]
[1757643211678,0.7,232.89,232.88,33.52]
[1757643213772,0.7,232.89,232.86,0.03]
[1757643213980,0.06,232.9,232.88,33.52]
[1757643214581,0.7,232.89,232.88,33.52]
[1757643216006,0.06,232.9,232.88,33.52]
[1757643216181,0.76,232.9,232.88,33.52]
[1757643216801,0.7,232.89,232.88,33.52]
[1757643219001,0.7,232.89,232.86,0.03]
[1757643219203,0.7,232.89,232.87,33.52]
[1757643222497,0.7,232.88,232.87,33.55]
[1757643222801,0.76,232.9,232.87,33.55]
[1757643223000,0.7,232.89,232.87,33.55]
[1757643224404,0.06,232.9,232.88,33.52]
[1757643224710,0.76,232.9,232.88,33.52]
[1757643225910,0.06,232.9,232.88,33.52]
[1757643226608,0.06,232.9,232.88,34.24]
[1757643226802,0.06,232.9,232.88,33.52]
[1757643228507,0.7,232.89,232.87,0.03]
[1757643228814,0.7,232.89,232.88,33.52]
[1757643229703,0.06,232.9,232.88,33.52]
[1757643230016,0.7,232.89,232.88,33.52]
[1757643230393,0.06,232.9,232.88,33.52]
[1757643230595,0.76,232.9,232.88,33.52]
[1757643231685,0.06,232.9,232.88,33.52]
[1757643231889,0.7,232.89,232.88,33.52]
[1757643232116,0.06,232.9,232.88,33.52]
[1757643232297,0.76,232.9,232.88,33.52]
[1757643232813,0.06,232.9,232.88,33.52]
[1757643233012,0.7,232.89,232.88,33.52]
[1757643233925,0.06,232.9,232.88,33.52]
[1757643234103,0.76,232.9,232.88,33.52]
[1757643234297,0.7,232.89,232.88,33.52]
[1757643235423,0.7,232.89,232.87,0.03]
[1757643235608,0.7,232.89,232.88,33.52]
[1757643236306,0.06,232.9,232.88,33.52]
[1757643236704,0.72,232.9,232.88,33.52]
[1757643237212,0.06,232.9,232.89,0.71]
[1757643239402,0.06,232.9,232.89,2.42754905]
[1757643239620,0.06,232.9,232.89,0.71]
[1757643240822,0.06,232.9,232.89,34.23]
[1757643241203,0.06,232.9,232.89,0.71]
[1757643241529,0.06,232.9,232.89,34.23]
[1757643246624,0.06,232.92,232.89,35.94754905]
[1757643246816,0.06,232.92,232.9,0.71]
[1757643247503,0.06,232.92,232.91,1.71740157]
[1757643248009,0.06,232.92,232.91,2.42740157]
[1757643248216,0.06,232.93,232.91,2.42740157]
[1757643248423,0.06,232.93,232.92,34.21]
[1757643250105,0.06,232.93,232.92,60.21]
[1757643251118,0.66,233.08,232.96,26.0]
[1757643251427,0.66,233.08,233.0,26.0]
[1757643251729,0.66,233.08,233.01,34.21]
[1757643251909,14.39777437,233.17,233.01,34.21]
[1757643251910,0.66,233.1,233.04,26.0]
[1757643252110,0.66,233.13,233.05,34.21]
[1757643252366,0.66,233.13,233.06,0.71]
[1757643253215,0.66,233.12,233.06,0.71]
[1757643253524,13.59559401,233.16,233.06,0.71]
[1757643253701,0.66,233.14,233.06,0.71]
[1757643254107,0.66,233.16,233.06,2.42628592]
[1757643254337,0.66,233.16,233.07,0.71]
[1757643254508,0.66,233.16,233.08,33.5]
[1757643254704,0.66,233.16,233.09,0.71]
[1757643254919,13.59559401,233.11,233.01,0.71]
[1757643255121,0.66,233.1,233.02,33.5]
[1757643255321,0.66,233.09,233.02,33.5]
[1757643255604,0.66,233.08,233.02,33.5]
[1757643256224,0.66,233.07,233.02,33.5]
[1757643256405,0.66,233.06,233.02,33.5]
[1757643256606,0.66,233.05,233.02,33.5]
[1757643257031,0.66,233.05,233.0,0.71]
[1757643257206,0.66,233.05,233.01,33.48]
[1757643258216,0.06,233.07,233.01,34.19]
[1757643258419,0.06,233.07,233.02,0.71]
[1757643258629,0.06,233.07,233.03,0.71]
[1757643259514,0.72,233.07,233.03,0.71]
[1757643259714,0.06,233.07,233.04,0.71]
[1757643259932,0.06,233.07,233.05,33.48]
[1757643260317,0.06,233.07,233.06,0.71]
[1757643261916,0.06,233.07,233.04,132.1]
[1757643262314,0.06,233.07,233.05,33.48]
[1757643263618,0.72,233.07,233.04,132.1]
[1757643263942,0.72,233.07,233.05,33.48]
[1757643264447,0.06,233.07,233.06,0.71]
[1757643264620,0.06,233.07,233.05,33.48]
[1757643265147,0.77,233.07,233.05,33.48]
[1757643265644,0.06,233.07,233.05,33.48]
[1757643274348,0.06,233.07,233.01,132.1]
[1757643274537,13.59559401,233.06,232.98,0.03]
[1757643274736,13.59559401,233.06,232.98,33.51]
[1757643274737,13.59559401,233.02,232.98,33.51]
[1757643275044,0.71,233.01,232.98,33.51]
[1757643275742,13.59559401,233.02,232.98,33.51]
[1757643275943,0.71,233.0,232.98,33.51]
[1757643276148,0.71,232.99,232.98,33.51]
[1757643277542,40.30559401,232.99,232.98,0.03]
[1757643277748,47.78552783,232.99,232.98,0.03]
[1757643278348,34.33307939,233.05,232.98,0.03]
[1757643278349,10.72748126,233.05,232.98,0.03]
[1757643278556,0.71,233.01,232.98,0.03]
[1757643278930,0.71,233.0,232.98,0.03]
[1757643280941,5.00186176,233.0,232.98,0.03]
[1757643281252,0.71,232.99,232.98,0.03]
[1757643282334,18.59725531,233.01,232.98,20.01]
[1757643282538,0.71,233.0,232.98,20.01]
[1757643282839,13.59559401,233.03,232.99,0.69]
[1757643283044,0.71,233.04,232.99,0.69]
[1757643283260,26.0,233.05,232.98,20.01]
[1757643283437,5.00090914,233.06,233.0,0.69]
[1757643284571,0.06,233.07,233.01,34.17]
[1757643284867,0.71,233.06,232.98,0.72]
[1757643285233,13.59559401,233.05,232.98,0.03]
[1757643285453,14.30559401,233.05,232.98,0.03]
[1757643285655,3.18930832,233.04,232.98,5.89]
[1757643285860,3.89930832,233.05,232.98,5.89]
[1757643286044,0.71,233.05,232.98,5.89]
[1757643287452,5.00098444,233.05,232.98,5.89]
[1757643289972,5.00098444,233.05,232.98,6.58]
[1757643291151,0.71,233.04,232.98,5.89]
[1757643291357,0.71,233.03,232.98,5.89]
[1757643291671,0.71,233.02,232.98,0.03]
[1757643291964,4.2916613,233.01,232.98,33.51]
[1757643292159,5.0016613,233.01,232.98,33.51]
[1757643292664,5.0016613,233.01,232.98,0.03]
[1757643292665,0.71,233.0,232.98,0.03]
[1757643293175,0.71,232.99,232.98,0.03]
[1757643294745,5.0020297,232.99,232.98,0.03]
[1757643298486,0.72,233.01,232.98,0.03]
[1757643298855,0.72,233.0,232.98,0.03]
[1757643299450,5.01187101,233.0,232.98,0.03]
[1757643300575,4.29166745,233.01,232.98,0.03]
[1757643300893,0.06,233.05,232.99,0.68]
[1757643301805,0.06,233.05,232.99,1.10920297]
[1757643301972,0.06,233.05,233.03,26.0]
[1757643302280,0.06,233.05,233.04,34.16]
[1757643305279,0.06,233.08,233.06,26.0]
[1757643305783,0.06,233.08,233.06,26.68]
[1757643309193,0.06,233.08,233.06,26.0]
[1757643309487,0.06,233.08,233.06,26.68]
[1757643311260,0.06,233.08,233.07,2.14527824]
[1757643311497,0.06,233.08,233.07,36.28527824]
[1757643312065,3.57771113,233.31,233.17,26.0]
[1757643312372,7.12888149,233.38,233.21,26.0]
[1757643312373,0.72,233.33,233.21,26.0]
[1757643312574,0.72,233.31,233.25,26.0]
[1757643312870,0.1,233.29,233.26,33.56]
[1757643313180,0.1,233.29,233.27,0.68]
[1757643313385,0.1,233.29,233.26,33.56]
[1757643313704,0.82,233.29,233.26,33.56]
[1757643314003,0.82,233.29,233.27,33.58]
[1757643314004,0.72,233.28,233.27,33.58]
[1757643314178,6.98310119,233.28,233.16,0.68]
[1757643314489,1.97640709,233.27,233.17,33.58]
[1757643314687,0.72,233.26,233.17,33.58]
[1757643314986,0.72,233.25,233.17,33.58]
[1757643315194,0.72,233.24,233.17,33.58]
[1757643315486,0.72,233.28,233.18,0.68]
[1757643316085,13.69559401,233.29,233.18,0.68]
[1757643316477,18.70213449,233.29,233.18,0.68]
[1757643317282,18.70213449,233.29,233.18,3.25309063]
[1757643317488,17.98213449,233.29,233.19,0.68]
[1757643317685,0.72,233.28,233.19,0.68]
[1757643319288,5.00674076,233.28,233.19,0.68]
[1757643319466,0.72,233.28,233.19,0.68]
[1757643320292,0.72,233.28,233.17,34.26]
[1757643320293,5.00670308,233.28,233.17,34.26]
[1757643320468,0.72,233.27,233.17,34.26]
[1757643320667,0.72,233.27,233.18,0.68]
[1757643321694,4.9931884,233.22,233.1,0.68]
[1757643321988,0.72,233.21,233.11,33.6]
[1757643322366,5.7131884,233.2,233.11,33.6]
[1757643322568,0.72,233.19,233.11,33.6]
[1757643322890,5.00845206,233.19,233.11,33.6]
[1757643323072,0.72,233.18,233.11,33.6]
[1757643325087,4.28856506,233.18,233.11,33.6]
[1757643325389,5.6631884,233.17,233.06,158.78]
[1757643325591,0.67,233.16,233.07,33.58]
[1757643325805,0.67,233.15,233.07,33.58]
[1757643326386,0.67,233.14,233.03,10.72020947]
[1757643326572,0.67,233.13,233.04,33.58]
[1757643326976,0.67,233.13,233.04,34.26]
[1757643327276,4.28954545,233.13,233.11,0.03]
[1757643327587,0.67,233.12,233.11,0.03]
[1757643328082,4.95912656,233.15,233.11,0.03]
[1757643328279,10.72107939,233.19,233.11,0.71]
[1757643328280,0.67,233.18,233.11,0.71]
[1757643328601,4.958562,233.18,233.11,0.71]
[1757643329099,4.958562,233.18,233.11,0.03]
[1757643330590,15.67989316,233.18,233.11,0.03]
[1757643331302,4.958562,233.18,233.11,0.03]
[1757643331809,13.59559401,233.17,233.11,0.03]
[1757643332282,0.67,233.16,233.12,33.6]
[1757643332486,0.67,233.15,233.12,33.6]
[1757643332691,15.00989316,233.18,233.08,0.03]
[1757643332692,13.59559401,233.09,233.08,0.03]
[1757643332893,39.59559401,233.06,232.93,10.63]
[1757643333097,11.80179399,233.0,232.93,10.63]
[1757643333572,0.67,232.99,232.93,10.63]
[1757643334604,4.96160839,233.02,232.93,10.63]
[1757643334798,0.67,233.02,232.93,10.63]
[1757643334998,4.29116062,233.04,232.98,0.71]
[1757643335187,4.29116062,233.04,232.98,0.03]
[1757643335385,14.26559401,233.05,232.98,0.03]
[1757643335886,18.55656781,233.05,232.98,0.03]
[1757643336603,13.59559401,233.03,232.98,0.03]
[1757643336975,0.67,233.02,232.98,0.03]
[1757643337178,4.2916613,233.01,232.98,0.03]
[1757643337372,13.59559401,233.01,232.98,0.03]
[1757643337595,13.59559401,233.02,232.98,0.03]
[1757643337800,0.67,233.0,232.98,0.03]
[1757643338598,21.77554251,232.99,232.98,0.03]
[1757643339109,26.06757221,232.99,232.98,0.03]
[1757643339278,18.55762371,232.99,232.98,0.03]
[1757643339478,14.26559401,233.02,232.98,0.03]
[1757643339782,4.96152077,233.02,232.98,0.03]
[1757643339982,0.67,233.01,232.98,0.03]
[1757643340391,4.29152077,233.02,232.98,0.03]
[1757643340594,0.67,233.06,232.99,0.68]
[1757643340882,0.67,233.06,232.98,0.03]
[1757643341482,4.96080476,233.06,232.98,0.03]
[1757643343785,13.59559401,233.05,232.98,0.03]
[1757643343981,23.19760471,233.06,232.98,0.03]
[1757643343982,13.59559401,233.03,232.98,33.79]
[1757643344182,0.67,233.02,232.98,33.79]
[1757643344407,0.67,233.01,232.98,33.79]
[1757643344808,0.67,233.0,232.98,33.79]
[1757643345800,0.67,233.02,232.98,33.79]
[1757643346498,13.59559401,233.03,232.98,33.79]
[1757643346705,0.67,233.02,232.98,33.79]
[1757643347610,0.67,233.01,232.98,33.79]
[1757643348093,4.29166003,233.02,232.98,33.79]
[1757643348300,17.88675955,233.04,232.98,33.79]
[1757643350312,13.59559401,233.02,232.99,33.78]
[1757643350614,0.67,233.01,232.99,33.78]
[1757643351115,0.67,233.0,232.99,33.78]
[1757643351715,4.29116554,233.04,232.99,34.46]
[1757643352216,4.96116554,233.04,232.99,34.46]
[1757643352715,4.96116554,233.04,232.99,33.78]
[1757643353015,0.67,233.03,232.99,33.78]
[1757643353401,4.95926825,233.14,233.02,26.0]
[1757643353599,4.95926825,233.14,233.03,0.68]
[1757643353993,13.59559401,233.13,233.03,0.68]
[1757643354719,17.88516688,233.13,233.03,0.68]
[1757643354913,0.67,233.14,233.07,26.0]
[1757643355210,0.67,233.14,233.07,26.69]
[1757643356393,4.95928309,233.14,233.07,26.69]
[1757643356597,0.7,233.13,233.08,33.82]
[1757643356804,0.7,233.12,233.08,33.82]
[1757643357012,4.98928309,233.14,233.08,33.82]
[1757643357512,14.29559401,233.13,233.02,0.69]
[1757643357718,13.59559401,233.09,232.98,0.72]
[1757643357902,13.59559401,233.09,233.02,33.82]
[1757643358092,13.59559401,233.07,233.02,33.82]
[1757643358298,0.7,233.06,233.02,33.82]
[1757643358498,0.7,233.05,233.02,33.82]
[1757643358900,13.59559401,233.07,233.02,33.82]
[1757643359094,4.29074058,233.06,233.02,33.82]
[1757643359308,17.88596641,233.08,233.02,34.51]
[1757643360522,13.59559401,233.09,233.03,0.69]
[1757643360822,14.29559401,233.09,233.04,33.84]
[1757643361012,4.29055648,233.07,233.04,33.84]
[1757643361319,4.99055648,233.07,233.04,33.84]
[1757643361617,4.99055648,233.07,233.05,33.84]
[1757643361809,4.99055648,233.07,233.0,26.69]
[1757643362007,4.99055648,233.07,233.01,33.82]
[1757643362406,4.99055648,233.07,232.98,0.03]
[1757643362606,7.5099485,233.06,232.99,33.82]
[1757643362816,8.2099485,233.06,232.99,33.82]
[1757643363017,4.29092469,233.05,232.99,34.51]
[1757643363695,4.29092469,233.05,233.0,0.69]
[1757643363897,0.7,233.04,233.01,33.82]
[1757643364399,0.7,233.03,233.02,33.82]
[1757643365002,4.99129296,233.03,233.02,33.82]
[1757643365220,4.29129296,233.03,233.02,33.82]
[1757643365723,23.22947387,233.03,232.98,0.03]
[1757643365926,0.7,233.02,232.98,0.03]
[1757643366117,0.7,233.02,232.99,33.8]
[1757643366294,13.59559401,233.0,232.98,0.03]
[1757643366498,24.29325419,232.99,232.98,0.03]
[1757643366695,24.99325419,232.99,232.98,0.03]
[1757643367219,29.28528389,232.99,232.98,0.03]
[1757643368723,21.77533539,232.99,232.98,0.03]
[1757643369820,29.28528389,232.99,232.98,0.03]
[1757643373206,29.29054908,232.99,232.98,0.03]
[1757643376017,39.59559401,232.96,232.93,0.03]
[1757643376329,21.10554251,232.94,232.93,0.03]
[1757643376517,24.29851938,232.94,232.93,0.03]
[1757643377025,24.99851938,232.94,232.93,0.03]
[1757643377221,24.29851938,232.94,232.93,0.03]
[1757643377528,24.99851938,232.94,232.93,0.03]
[1757643377937,29.29147035,232.94,232.93,0.03]
[1757643378646,16.78857088,232.94,232.93,0.03]
[1757643379133,21.08152185,232.94,232.93,0.03]
[1757643379936,16.78857088,232.94,232.93,0.03]
[1757643380223,21.08152185,232.94,232.93,0.03]
[1757643380915,21.08190803,232.94,232.93,0.03]
[1757643381322,21.08190803,232.94,232.93,0.72]
[1757643382212,21.08190803,232.94,232.93,0.03]
[1757643383734,17.88707113,233.02,232.93,0.72]
[1757643383938,3.19097313,233.01,232.93,0.72]
[1757643384109,4.29147712,233.02,232.94,27.06]
[1757643384313,3.19098469,233.01,232.95,0.69]
[1757643384514,4.29,233.05,232.95,0.69]
[1757643384723,3.19052613,233.04,232.96,33.88]
[1757643385037,3.19052613,233.04,232.97,0.7]
[1757643385207,4.29129296,233.03,232.97,0.7]
[1757643386525,7.5099485,233.01,232.94,33.92]
[1757643386720,7.5099485,233.02,232.95,0.7]
[1757643386929,8.2299485,233.01,232.93,0.03]
[1757643387243,21.10554251,233.0,232.93,0.03]
[1757643387732,17.88744498,233.0,232.93,0.03]
[1757643387915,25.39739348,233.0,232.93,0.03]
[1757643388240,21.10554251,233.0,232.93,0.03]
[1757643388540,17.88745487,233.0,232.93,0.73]
[1757643388747,13.59559401,233.02,232.93,0.73]
[1757643388917,0.06,233.07,232.93,0.73]
[1757643388918,0.06,233.07,232.94,26.0]
[1757643389119,0.06,233.07,232.95,1.12927666]
[1757643389432,0.06,233.07,233.0,26.0]
[1757643389632,0.06,233.07,233.04,26.0]
[1757643390022,0.06,233.07,233.05,0.7]
[1757643390850,0.06,233.07,233.04,26.0]
[1757643391022,0.06,233.07,233.06,0.7]
[1757643391228,0.06,233.07,233.06,34.66]
[1757643392552,0.06,233.18,233.09,26.0]
[1757643392769,0.06,233.18,233.1,26.7]
[1757643392963,0.06,233.18,233.14,26.0]
[1757643393344,0.06,233.21,233.15,1.12890842]
[1757643393656,0.06,233.21,233.16,0.7]
[1757643394532,0.06,233.21,233.2,26.0]
[1757643394734,0.06,233.21,233.2,60.74]
[1757643395045,0.06,233.21,233.2,26.7]
[1757643395245,0.06,233.21,233.04,20.0]
[1757643395450,0.06,233.21,233.18,0.7]
[1757643395633,0.06,233.21,233.19,34.04]
[1757643395832,0.06,233.21,233.19,34.74]
[1757643396046,0.06,233.21,233.19,0.7]
[1757643396651,0.06,233.21,233.2,34.14]
[1757643396853,0.06,233.21,233.2,34.12]
[1757643397644,4.34803071,233.21,233.14,0.7]
[1757643397846,5.06803071,233.21,233.15,34.12]
[1757643399565,14.31559401,233.2,233.15,34.12]
[1757643399775,0.72,233.19,233.15,34.12]
[1757643399972,13.59559401,233.2,233.15,34.12]
[1757643400269,14.31559401,233.2,233.15,34.12]
[1757643400440,0.72,233.19,233.15,34.12]
[1757643400631,0.72,233.19,233.11,0.7]
[1757643400832,0.72,233.19,233.12,34.12]
[1757643401644,4.28836231,233.19,233.12,34.12]
[1757643402152,4.28836231,233.19,233.12,34.1]
[1757643402373,4.99193547,233.17,233.06,0.73]
[1757643402664,0.72,233.16,233.06,0.73]
[1757643402845,0.72,233.16,233.07,25.54]
[1757643403761,4.28908428,233.15,233.06,0.73]
[1757643403943,0.72,233.14,233.07,34.06]
[1757643404143,13.59559401,233.14,233.08,34.06]
[1757643404467,26.0,233.17,233.08,34.06]
[1757643404468,13.59559401,233.16,233.09,0.7]
[1757643405949,4.28908428,233.15,233.09,0.7]
[1757643406760,4.28851358,233.19,233.09,0.7]
[1757643409167,5.00851358,233.19,233.09,0.7]
[1757643409860,13.59559401,233.18,233.07,132.1]
[1757643410060,0.72,233.17,233.1,34.06]
[1757643410969,14.31559401,233.19,233.11,34.04]
[1757643411577,4.28819561,233.2,233.11,34.04]
[1757643411767,4.28819561,233.2,233.12,0.7]
[1757643411964,0.06,233.21,233.12,0.7]
[1757643412281,0.06,233.21,233.14,26.0]
[1757643412468,0.06,233.21,233.14,26.7]
[1757643412860,0.06,233.21,233.15,0.7]
[1757643413061,0.06,233.21,233.15,26.7]
[1757643413281,0.06,233.21,233.16,0.7]
[1757643413480,0.06,233.21,233.17,34.74]
[1757643414078,0.06,233.21,233.18,0.7]
[1757643414464,0.06,233.21,233.17,34.04]
[1757643414465,0.06,233.21,233.2,26.0]
[1757643414873,0.06,233.21,233.2,26.66]
[1757643415555,0.06,233.23,233.2,0.66]
[1757643415879,0.06,233.23,233.21,34.04]
[1757643416680,0.06,233.23,233.21,34.16]
[1757643417276,0.06,233.23,233.21,34.82]
[1757643419083,0.06,233.23,233.21,34.16]
[1757643419591,0.06,233.24,233.22,14.25559401]
[1757643419759,0.06,233.26,233.25,39.59559401]
[1757643419956,0.1,233.29,233.25,60.18]
[1757643420160,0.1,233.29,233.25,60.84]
[1757643420388,0.1,233.29,233.26,0.66]
[1757643420763,0.1,233.29,233.25,60.18]
[1757643420970,0.1,233.29,233.26,0.66]
[1757643422698,0.1,233.29,233.25,60.18]
[1757643422871,0.1,233.29,233.26,0.66]
[1757643423369,0.1,233.29,233.27,34.18]
[1757643423669,0.1,233.29,233.21,0.66]
[1757643423877,0.1,233.29,233.14,3.50738189]
[1757643423878,0.71,233.28,233.22,34.18]
[1757643424178,4.38654975,233.29,233.17,0.66]
[1757643424386,0.71,233.28,233.18,34.22]
[1757643424899,0.71,233.27,233.18,34.22]
[1757643425460,0.71,233.26,233.15,132.1]
[1757643425686,4.28724544,233.25,233.16,34.22]
[1757643426170,0.71,233.24,233.16,34.22]
[1757643426369,0.71,233.24,233.16,34.88]
[1757643427497,4.99744489,233.24,233.16,34.88]
[1757643429189,4.49744489,233.24,233.16,34.88]
[1757643430175,4.28711793,233.26,233.17,0.66]
[1757643430397,0.1,233.29,233.17,0.66]
[1757643430587,3.27989875,233.29,233.17,0.66]
[1757643431104,4.29,233.28,233.17,0.66]
[1757643431399,7.4669389,233.27,233.17,0.66]
[1757643431605,3.17989875,233.26,233.17,0.66]
[1757643432379,3.17989875,233.26,233.17,3.66209051]
[1757643432567,3.17989875,233.26,233.18,0.66]
[1757643433382,3.17989875,233.25,233.18,0.66]
[1757643433595,3.17989875,233.26,233.18,132.76]
[1757643433802,3.17989875,233.25,233.18,132.76]
[1757643434121,7.4669822,233.26,233.18,132.76]
[1757643434411,3.88989875,233.25,233.18,132.76]
[1757643434579,3.17989875,233.24,233.18,132.76]
[1757643434767,3.17989875,233.24,233.18,132.79]
[1757643435402,3.17989875,233.23,233.18,132.79]
[1757643435605,3.17989875,233.24,233.18,0.69]
[1757643435897,3.17989875,233.23,233.18,0.69]
[1757643436075,3.17989875,233.24,233.18,0.69]
[1757643436399,3.17989875,233.23,233.18,0.69]
[1757643436583,4.99727282,233.25,233.18,0.69]
[1757643436584,3.17989875,233.24,233.18,0.69]
[1757643436785,3.17989875,233.23,233.18,0.03]
[1757643436998,26.0,233.15,233.04,0.03]
[1757643437213,3.17989875,233.14,233.04,0.03]
[1757643437520,4.99193547,233.12,233.04,6.33]
[1757643437800,4.99193547,233.1,233.04,6.33]
[1757643438006,8.17183422,233.1,233.04,6.33]
[1757643438209,8.88183422,233.1,233.04,6.33]
[1757643438380,3.88989875,233.1,233.04,6.33]
[1757643438778,3.9030082,233.1,233.04,6.33]
[1757643438980,26.0,233.17,233.09,0.69]
[1757643439179,3.19250024,233.16,233.1,25.06]
[1757643439984,3.19250024,233.17,233.1,25.06]
[1757643440399,7.48122186,233.17,233.1,25.06]
[1757643440700,3.19250024,233.16,233.1,25.06]
[1757643440904,3.19250024,233.17,233.1,25.06]
[1757643441605,3.90250024,233.18,233.1,25.06]
[1757643442112,8.19250024,233.18,233.1,25.06]
[1757643442287,3.19250024,233.17,233.1,25.06]
[1757643443110,0.71,233.16,233.1,25.06]
[1757643443292,0.71,233.15,233.1,34.3]
[1757643443608,9.99120372,233.14,233.09,0.03]
[1757643443783,4.99926825,233.14,233.09,0.03]
[1757643444131,3.90269971,233.13,233.09,0.03]
[1757643444294,0.71,233.13,233.09,0.03]
[1757643444599,0.71,233.12,233.09,0.03]
[1757643445291,0.67,233.12,233.09,0.03]
[1757643445811,4.95964801,233.12,233.09,0.03]
[1757643446108,0.67,233.12,233.09,0.03]
[1757643446511,4.95966473,233.12,233.09,0.03]
[1757643447101,0.67,233.12,233.09,0.03]
[1757643447296,4.9591461,233.15,233.09,0.03]
[1757643447497,4.2891461,233.15,233.09,0.03]
[1757643448184,26.0,233.16,233.09,0.03]
[1757643448416,30.29,233.16,233.09,0.03]
[1757643448803,34.57895384,233.16,233.09,0.03]
[1757643450601,30.28895384,233.16,233.09,0.03]
[1757643450819,0.67,233.15,233.09,0.03]
[1757643451023,4.99193547,233.13,233.09,0.03]
[1757643451327,0.67,233.12,233.09,0.03]
[1757643451717,0.67,233.11,233.09,0.03]
[1757643452418,4.95987081,233.11,233.09,0.03]
[1757643452720,0.67,233.1,233.09,0.03]
[1757643453607,23.54752948,233.1,233.09,0.03]
[1757643453823,26.73725007,233.1,233.09,0.03]
[1757643454721,31.02725436,233.1,233.09,0.03]
[1757643456331,33.55341204,233.1,233.09,0.03]
[1757643456700,13.59559401,233.05,233.04,0.03]
[1757643456921,21.11368716,233.05,233.04,0.03]
[1757643457118,21.78368716,233.05,233.04,0.03]
[1757643457407,0.67,233.05,233.04,0.03]
[1757643457612,39.59559401,233.05,233.04,0.03]
[1757643457812,26.0,233.05,233.04,0.03]
[1757643458215,4.29,233.06,233.04,0.03]
[1757643458419,4.29092469,233.05,233.04,0.03]
[1757643459009,30.96092469,233.05,233.04,0.03]
[1757643459611,26.07461185,233.05,233.04,0.03]
[1757643463135,4.29092469,233.05,233.04,0.03]
[1757643463323,4.29069887,233.07,233.04,0.03]